Workbook

Sheet lbs
A1: Weight Loss Chart
A2: https://www.excel-template.net/weight-loss-chart/ | J2: © 2016 excel-template.net
B4: Start Weight (lbs): | C4: 222 | E4: Goal Weight: | F4: 200 | H4: Height (ft) | I4: 5
B5: Start Date: | C5: 2016-01-01 | E5: Goal Date: | F5: =C5+90 -> 2016-03-31 | H5: Height (in) | I5: 10.5
B6: Start BMI: | C6: =IF(OR(ISBLANK(C4),ISERROR(C4*703/($I$4*12+$I$5)^2))," --- ",C4*703/($I$4*12+$I$5)^2) -> 31.40 | E6: Goal BMI: | F6: =IF(OR(ISBLANK(F4),ISERROR(F4*703/($I$4*12+$I$5)^2))," --- ",F4*703/($I$4*12+$I$5)^2) -> 28.29
B9: Chart Settings | K9: To Change the Scale of the Vertical Axis (pounds)
B10: Start Date | C10: =C5 -> 2016-01-01 | K10: 1. Right-click on the vertical axis and go to Format Axis
B11: End Date | C11: =MAX(C27:C118) -> 2016-03-31 | K11: 2. Edit the Minimum and Maximum values, then click OK
B13: BMI Values | C13: BMI | D13: Weight
B14: ="BMI="&C14 -> BMI=19 | C14: 19 | D14: =C14*($I$4*12+$I$5)^2/703 -> 134.33
B15: ="BMI="&C15 -> BMI=25 | C15: 25 | D15: =C15*($I$4*12+$I$5)^2/703 -> 176.75
B16: ="BMI="&C16 -> BMI=30 | C16: 30 | D16: =C16*($I$4*12+$I$5)^2/703 -> 212.10
C27: Date | D27: Weight (lbs) | E27: +/- | F27: BMI | G27: 1 lb/wk | H27: 2 lb/wk
C28: =C5+1 -> 2016-01-02 | D28: 222 | E28: =IF(D28="","",D28-$C$4) -> 0.00 | F28: =IF(ISBLANK(D28),"",D28*703/($I$4*12+$I$5)^2) -> 31.40 | G28: =$C$4-($C28-$C$5)*(1/7) -> 221.86 | H28: =$C$4-($C28-$C$5)*(2/7) -> 221.71 | K28: ◄ Delete the sample data in the Weight column
C29: =C28+1 -> 2016-01-03 | D29: 221 | E29: =IF(D29="","",D29-$C$4) -> -1.00 | F29: =IF(ISBLANK(D29),"",D29*703/($I$4*12+$I$5)^2) -> 31.26 | G29: 221.71 | H29: 221.43 | K29: ◄ 1 lb/wk: Appears as dark blue diagonal line in graph
C30: =C29+1 -> 2016-01-04 | D30: 221.5 | E30: -0.50 | F30: 31.33 | G30: 221.57 | H30: 221.14 | K30: ◄ 2 lb/wk: Appears as light blue diagonal line in graph
C31: 2016-01-05 | D31: 222 | E31: 0.00 | F31: 31.40 | G31: 221.43 | H31: 220.86
C32: 2016-01-06 | D32: 220.5 | E32: -1.50 | F32: 31.19 | G32: 221.29 | H32: 220.57
C33: 2016-01-07 | D33: 220.4 | E33: -1.60 | F33: 31.17 | G33: 221.14 | H33: 220.29
C34: 2016-01-08 | D34: 220.8 | E34: -1.20 | F34: 31.23 | G34: 221.00 | H34: 220.00
C35: 2016-01-09 | D35: 223.2 | E35: 1.20 | F35: 31.57 | G35: 220.86 | H35: 219.71
C36: 2016-01-10 | D36: 221.7 | E36: -0.30 | F36: 31.36 | G36: 220.71 | H36: 219.43
C37: 2016-01-11 | D37: 220.8 | E37: -1.20 | F37: 31.23 | G37: 220.57 | H37: 219.14
C38: 2016-01-12 | D38: 222.3 | E38: 0.30 | F38: 31.44 | G38: 220.43 | H38: 218.86
C39: 2016-01-13 | D39: 220.8 | E39: -1.20 | F39: 31.23 | G39: 220.29 | H39: 218.57
C40: 2016-01-14 | D40: 219.8 | E40: -2.20 | F40: 31.09 | G40: 220.14 | H40: 218.29
C41: 2016-01-15 | D41: 219.6 | E41: -2.40 | F41: 31.06 | G41: 220.00 | H41: 218.00
C42: 2016-01-16 | D42: 216 | E42: -6.00 | F42: 30.55 | G42: 219.86 | H42: 217.71
C43: 2016-01-17 | D43: 217.4 | E43: -4.60 | F43: 30.75 | G43: 219.71 | H43: 217.43
C44: 2016-01-18 | D44: 216.5 | E44: -5.50 | F44: 30.62 | G44: 219.57 | H44: 217.14
C45: 2016-01-19 | D45: 218.2 | E45: -3.80 | F45: 30.86 | G45: 219.43 | H45: 216.86
C46: 2016-01-20 | D46: 217.4 | E46: -4.60 | F46: 30.75 | G46: 219.29 | H46: 216.57
C47: 2016-01-21 | G47: 219.14 | H47: 216.29
C48: 2016-01-22 | G48: 219.00 | H48: 216.00
C49: 2016-01-23 | G49: 218.86 | H49: 215.71
C50: 2016-01-24 | G50: 218.71 | H50: 215.43
C51: 2016-01-25 | G51: 218.57 | H51: 215.14
C52: 2016-01-26 | G52: 218.43 | H52: 214.86
C53: 2016-01-27 | G53: 218.29 | H53: 214.57
C54: 2016-01-28 | G54: 218.14 | H54: 214.29
C55: 2016-01-29 | G55: 218.00 | H55: 214.00
C56: 2016-01-30 | G56: 217.86 | H56: 213.71
C57: 2016-01-31 | G57: 217.71 | H57: 213.43
C58: 2016-02-01 | G58: 217.57 | H58: 213.14
C59: 2016-02-02 | G59: 217.43 | H59: 212.86
C60: 2016-02-03 | G60: =$C$4-($C60-$C$5)*(1/7) -> 217.29 | H60: =$C$4-($C60-$C$5)*(2/7) -> 212.57
C61: 2016-02-04 | G61: 217.14 | H61: 212.29
C62: 2016-02-05 | G62: 217.00 | H62: 212.00
C63: 2016-02-06 | G63: 216.86 | H63: 211.71
C64: 2016-02-07 | G64: 216.71 | H64: 211.43
C65: 2016-02-08 | G65: 216.57 | H65: 211.14
C66: 2016-02-09 | G66: 216.43 | H66: 210.86
C67: 2016-02-10 | G67: 216.29 | H67: 210.57
C68: 2016-02-11 | G68: 216.14 | H68: 210.29
C69: 2016-02-12 | G69: 216.00 | H69: 210.00
C70: 2016-02-13 | G70: 215.86 | H70: 209.71
C71: 2016-02-14 | G71: 215.71 | H71: 209.43
C72: 2016-02-15 | G72: 215.57 | H72: 209.14
C73: 2016-02-16 | G73: 215.43 | H73: 208.86
C74: 2016-02-17 | G74: 215.29 | H74: 208.57
C75: 2016-02-18 | G75: 215.14 | H75: 208.29
C76: 2016-02-19 | G76: 215.00 | H76: 208.00
C77: 2016-02-20 | G77: 214.86 | H77: 207.71
C78: 2016-02-21 | G78: 214.71 | H78: 207.43
C79: 2016-02-22 | G79: 214.57 | H79: 207.14
C80: 2016-02-23 | G80: 214.43 | H80: 206.86
C81: 2016-02-24 | G81: 214.29 | H81: 206.57
C82: 2016-02-25 | G82: 214.14 | H82: 206.29
C83: 2016-02-26 | G83: 214.00 | H83: 206.00
C84: 2016-02-27 | G84: 213.86 | H84: 205.71
C85: 2016-02-28 | G85: 213.71 | H85: 205.43
C86: 2016-02-29 | G86: 213.57 | H86: 205.14
C87: 2016-03-01 | G87: 213.43 | H87: 204.86
C88: 2016-03-02 | G88: 213.29 | H88: 204.57
C89: 2016-03-03 | G89: 213.14 | H89: 204.29
C90: 2016-03-04 | G90: 213.00 | H90: 204.00
C91: 2016-03-05 | G91: 212.86 | H91: 203.71
C92: 2016-03-06 | G92: =$C$4-($C92-$C$5)*(1/7) -> 212.71 | H92: =$C$4-($C92-$C$5)*(2/7) -> 203.43
C93: 2016-03-07 | E93: =IF(D93="","",D93-$C$4) ->  | F93: =IF(ISBLANK(D93),"",D93*703/($I$4*12+$I$5)^2) ->  | G93: 212.57 | H93: 203.14
C94: =C93+1 -> 2016-03-08 | G94: 212.43 | H94: 202.86
C95: 2016-03-09 | G95: 212.29 | H95: 202.57
C96: 2016-03-10 | G96: 212.14 | H96: 202.29
C97: 2016-03-11 | G97: 212.00 | H97: 202.00
C98: 2016-03-12 | G98: 211.86 | H98: 201.71
C99: 2016-03-13 | G99: 211.71 | H99: 201.43
C100: 2016-03-14 | G100: 211.57 | H100: 201.14
C101: 2016-03-15 | G101: 211.43 | H101: 200.86
C102: 2016-03-16 | G102: 211.29 | H102: 200.57
C103: 2016-03-17 | G103: 211.14 | H103: 200.29
C104: 2016-03-18 | G104: 211.00 | H104: 200.00
C105: 2016-03-19 | G105: 210.86 | H105: 199.71
C106: 2016-03-20 | G106: 210.71 | H106: 199.43
C107: 2016-03-21 | G107: 210.57 | H107: 199.14
C108: 2016-03-22 | G108: 210.43 | H108: 198.86
C109: 2016-03-23 | G109: 210.29 | H109: 198.57
C110: 2016-03-24 | G110: 210.14 | H110: 198.29
C111: 2016-03-25 | G111: 210.00 | H111: 198.00
C112: 2016-03-26 | G112: 209.86 | H112: 197.71
C113: 2016-03-27 | G113: 209.71 | H113: 197.43
C114: 2016-03-28 | G114: 209.57 | H114: 197.14
C115: 2016-03-29 | G115: 209.43 | H115: 196.86
C116: 2016-03-30 | G116: 209.29 | H116: 196.57
C117: 2016-03-31 | G117: 209.14 | H117: 196.29
K118: ◄ Insert new rows ABOVE this one, then copy formulas down (in columns C-F)

Sheet kg
A1: Weight Loss Chart (metric)
A2: https://www.excel-template.net/weight-loss-chart/ | J2: © 2016 excel-template.net
B4: Start Weight (kg): | C4: 84 | E4: Goal Weight: | F4: 73 | H4: Height (cm) | I4: 177
B5: Start Date: | C5: 2016-01-01 | E5: Goal Date: | F5: =C5+90 -> 2016-03-31
B6: Start BMI: | C6: =IF(OR(ISBLANK(C4),ISERROR(C4/($I$4/100)^2))," --- ",C4/($I$4/100)^2) -> 26.81 | E6: Goal BMI: | F6: =IF(OR(ISBLANK(F4),ISERROR(F4/($I$4/100)^2))," --- ",F4/($I$4/100)^2) -> 23.30
B9: Chart Settings
B10: Start Date | C10: =C5 -> 2016-01-01 | K10: To Change the Scale of the Vertical Axis (pounds)
B11: End Date | C11: =MAX(C27:C118) -> 2016-03-31 | K11: 1. Right-click on the vertical axis and go to Format Axis
K12: 2. Edit the Minimum and Maximum values, then click OK
B13: BMI Values | C13: BMI | D13: Weight
B14: ="BMI="&C14 -> BMI=19 | C14: 19 | D14: =C14*($I$4/100)^2 -> 59.53
B15: ="BMI="&C15 -> BMI=25 | C15: 25 | D15: =C15*($I$4/100)^2 -> 78.32
B16: ="BMI="&C16 -> BMI=30 | C16: 30 | D16: =C16*($I$4/100)^2 -> 93.99
C27: Date | D27: Weight (kg) | E27: +/- | F27: BMI | G27: ½ kg/wk | H27: 1 kg/wk
C28: =C5+1 -> 2016-01-02 | D28: 84.2 | E28: =IF(D28="","",D28-$C$4) -> 0.20 | F28: =IF(ISBLANK(D28),"",D28/($I$4/100)^2) -> 26.88 | G28: =$C$4-($C28-$C$5)*(0.5/7) -> 83.93 | H28: =$C$4-($C28-$C$5)*(1/7) -> 83.86 | K28: ◄ Delete the sample data in the Weight column
C29: =C28+1 -> 2016-01-03 | D29: 83.7 | E29: -0.30 | F29: =IF(ISBLANK(D29),"",D29/($I$4/100)^2) -> 26.72 | G29: 83.86 | H29: 83.71 | K29: ◄ 1/2 kg/wk: Appears as dark blue diagonal line in graph
C30: 2016-01-04 | D30: 84 | E30: 0.00 | F30: 26.81 | G30: 83.79 | H30: 83.57 | K30: ◄ 1 kg/wk: Appears as light blue diagonal line in graph
C31: 2016-01-05 | D31: 84.1 | E31: 0.10 | F31: 26.84 | G31: 83.71 | H31: 83.43
C32: 2016-01-06 | D32: 83.7 | E32: -0.30 | F32: 26.72 | G32: 83.64 | H32: 83.29
C33: 2016-01-07 | D33: 83.5 | E33: -0.50 | F33: 26.65 | G33: 83.57 | H33: 83.14
C34: 2016-01-08 | D34: 83.6 | E34: -0.40 | F34: 26.68 | G34: 83.50 | H34: 83.00
C35: 2016-01-09 | D35: 84.5 | E35: 0.50 | F35: 26.97 | G35: 83.43 | H35: 82.86
C36: 2016-01-10 | D36: 84 | E36: 0.00 | F36: 26.81 | G36: 83.36 | H36: 82.71
C37: 2016-01-11 | D37: 83.6 | E37: -0.40 | F37: 26.68 | G37: 83.29 | H37: 82.57
C38: 2016-01-12 | D38: 84.2 | E38: 0.20 | F38: 26.88 | G38: 83.21 | H38: 82.43
C39: 2016-01-13 | D39: 83.6 | E39: -0.40 | F39: 26.68 | G39: 83.14 | H39: 82.29
C40: 2016-01-14 | D40: 83.3 | E40: -0.70 | F40: 26.59 | G40: 83.07 | H40: 82.14
C41: 2016-01-15 | D41: 83.2 | E41: -0.80 | F41: 26.56 | G41: 83.00 | H41: 82.00
C42: 2016-01-16 | D42: 83 | E42: -1.00 | F42: 26.49 | G42: 82.93 | H42: 81.86
C43: 2016-01-17 | D43: 82.4 | E43: -1.60 | F43: 26.30 | G43: 82.86 | H43: 81.71
C44: 2016-01-18 | D44: 82 | E44: -2.00 | F44: 26.17 | G44: 82.79 | H44: 81.57
C45: 2016-01-19 | D45: 82.7 | E45: -1.30 | F45: 26.40 | G45: 82.71 | H45: 81.43
C46: 2016-01-20 | D46: 82.4 | E46: -1.60 | F46: 26.30 | G46: 82.64 | H46: 81.29
C47: 2016-01-21 | G47: 82.57 | H47: 81.14
C48: 2016-01-22 | G48: 82.50 | H48: 81.00
C49: 2016-01-23 | G49: 82.43 | H49: 80.86
C50: 2016-01-24 | G50: 82.36 | H50: 80.71
C51: 2016-01-25 | G51: 82.29 | H51: 80.57
C52: 2016-01-26 | G52: 82.21 | H52: 80.43
C53: 2016-01-27 | G53: 82.14 | H53: 80.29
C54: 2016-01-28 | G54: 82.07 | H54: 80.14
C55: 2016-01-29 | G55: 82.00 | H55: 80.00
C56: 2016-01-30 | G56: 81.93 | H56: 79.86
C57: 2016-01-31 | G57: 81.86 | H57: 79.71
C58: 2016-02-01 | G58: 81.79 | H58: 79.57
C59: 2016-02-02 | G59: 81.71 | H59: 79.43
C60: 2016-02-03 | E60: =IF(D60="","",D60-$C$4) ->  | G60: =$C$4-($C60-$C$5)*(0.5/7) -> 81.64 | H60: =$C$4-($C60-$C$5)*(1/7) -> 79.29
C61: 2016-02-04 | G61: 81.57 | H61: 79.14
C62: 2016-02-05 | G62: 81.50 | H62: 79.00
C63: 2016-02-06 | G63: 81.43 | H63: 78.86
C64: 2016-02-07 | G64: 81.36 | H64: 78.71
C65: 2016-02-08 | G65: 81.29 | H65: 78.57
C66: 2016-02-09 | G66: 81.21 | H66: 78.43
C67: 2016-02-10 | G67: 81.14 | H67: 78.29
C68: 2016-02-11 | G68: 81.07 | H68: 78.14
C69: 2016-02-12 | G69: 81.00 | H69: 78.00
C70: 2016-02-13 | G70: 80.93 | H70: 77.86
C71: 2016-02-14 | G71: 80.86 | H71: 77.71
C72: 2016-02-15 | G72: 80.79 | H72: 77.57
C73: 2016-02-16 | G73: 80.71 | H73: 77.43
C74: 2016-02-17 | G74: 80.64 | H74: 77.29
C75: 2016-02-18 | G75: 80.57 | H75: 77.14
C76: 2016-02-19 | G76: 80.50 | H76: 77.00
C77: 2016-02-20 | G77: 80.43 | H77: 76.86
C78: 2016-02-21 | G78: 80.36 | H78: 76.71
C79: 2016-02-22 | G79: 80.29 | H79: 76.57
C80: 2016-02-23 | G80: 80.21 | H80: 76.43
C81: 2016-02-24 | G81: 80.14 | H81: 76.29
C82: 2016-02-25 | G82: 80.07 | H82: 76.14
C83: 2016-02-26 | G83: 80.00 | H83: 76.00
C84: 2016-02-27 | G84: 79.93 | H84: 75.86
C85: 2016-02-28 | G85: 79.86 | H85: 75.71
C86: 2016-02-29 | G86: 79.79 | H86: 75.57
C87: 2016-03-01 | G87: 79.71 | H87: 75.43
C88: 2016-03-02 | G88: 79.64 | H88: 75.29
C89: 2016-03-03 | G89: 79.57 | H89: 75.14
C90: 2016-03-04 | G90: 79.50 | H90: 75.00
C91: 2016-03-05 | G91: 79.43 | H91: 74.86
C92: 2016-03-06 | E92: =IF(D92="","",D92-$C$4) ->  | G92: =$C$4-($C92-$C$5)*(0.5/7) -> 79.36 | H92: =$C$4-($C92-$C$5)*(1/7) -> 74.71
C93: =C92+1 -> 2016-03-07 | F93: =IF(ISBLANK(D93),"",D93/($I$4/100)^2) ->  | G93: 79.29 | H93: 74.57
C94: 2016-03-08 | G94: 79.21 | H94: 74.43
C95: 2016-03-09 | G95: 79.14 | H95: 74.29
C96: 2016-03-10 | G96: 79.07 | H96: 74.14
C97: 2016-03-11 | G97: 79.00 | H97: 74.00
C98: 2016-03-12 | G98: 78.93 | H98: 73.86
C99: 2016-03-13 | G99: 78.86 | H99: 73.71
C100: 2016-03-14 | G100: 78.79 | H100: 73.57
C101: 2016-03-15 | G101: 78.71 | H101: 73.43
C102: 2016-03-16 | G102: 78.64 | H102: 73.29
C103: 2016-03-17 | G103: 78.57 | H103: 73.14
C104: 2016-03-18 | G104: 78.50 | H104: 73.00
C105: 2016-03-19 | G105: 78.43 | H105: 72.86
C106: 2016-03-20 | G106: 78.36 | H106: 72.71
C107: 2016-03-21 | G107: 78.29 | H107: 72.57
C108: 2016-03-22 | G108: 78.21 | H108: 72.43
C109: 2016-03-23 | G109: 78.14 | H109: 72.29
C110: 2016-03-24 | G110: 78.07 | H110: 72.14
C111: 2016-03-25 | G111: 78.00 | H111: 72.00
C112: 2016-03-26 | G112: 77.93 | H112: 71.86
C113: 2016-03-27 | G113: 77.86 | H113: 71.71
C114: 2016-03-28 | G114: 77.79 | H114: 71.57
C115: 2016-03-29 | G115: 77.71 | H115: 71.43
C116: 2016-03-30 | G116: 77.64 | H116: 71.29
C117: 2016-03-31 | G117: 77.57 | H117: 71.14
J118: ◄ Insert new rows ABOVE this one, then copy formulas down (in columns C-F)
